Cogmind - Beta 10.2 @@@ ROGUE MODE // 2021.11.26 @ 13:24:27 Player: Louistron Result: Self-destructed Performance ------------- Evolutions (2) 1000 Regions Visited (5) 1000 Robots Destroyed (21) 105 Value Destroyed (275) 275 Prototype IDs (0) 0 Alien Tech Used (0) 0 Bonus (0) 0 TOTAL SCORE: 2380 Bonus ------- None Cogmind --------- Core Integrity 550/550 Matter 300/300 Energy 140/140 System Corruption 0% Temperature Cool (0) Movement Treading (180) Ox1 Location -8/Materials Parts ------- > --- POWER (1) -------- Light Deuterium Engine > --- PROPULSION (4) --- Light Treads Light Treads > --- UTILITY (4) ------ High-capacity Storage Unit High-capacity Storage Unit > --- WEAPON (2) ------- Assault Rifle Makeshift Hammer > --- INVENTORY (20) --- Improved Ion Engine Aluminum Leg Improved Heat Sink Sensor Array Launcher Guidance Computer Light Armor Plating EM Pulse Gun Beam Rifle Assault Rifle Peak State ------------ > --- POWER ------------ Ion Engine > --- PROPULSION ------- Aluminum Leg Aluminum Leg > --- UTILITY ---------- High-capacity Storage Unit High-capacity Storage Unit > --- WEAPON ----------- Particle Gun Makeshift Hammer > --- INVENTORY -------- Light Deuterium Engine Light Treads Light Treads Aluminum Leg Aluminum Leg Aluminum Leg Improved Heat Sink Sensor Array Launcher Guidance Computer Light Armor Plating EM Pulse Gun Assault Rifle Assault Rifle [Rating: 13] Favorites ----------- Power Ion Engine Engine Ion Engine Propulsion Aluminum Leg Treads Light Treads Leg Aluminum Leg Utility High-capacity Storage Unit Storage High-capacity Storage Unit Weapon Assault Rifle Energy Gun EM Pulse Gun Ballistic Gun Assault Rifle Launcher Grenade Launcher Impact Weapon Makeshift Hammer Build | -11 -10 -10 -10 -9 -8 ------- Run | Scr Mat Min Exi Min Mat Slots Evolved 4 | . . . . . 4 Power . | . . . . . . Propulsion 2 | . . . . . 2 Utility 2 | . . . . . 2 Weapon . | . . . . . . Parts Attached 21 | 7 3 5 . 6 . Power 4 | 1 . 2 . 1 . Engine 4 | 1 . 2 . 1 . Core . | . . . . . . Reactor . | . . . . . . Propulsion 7 | 2 . 1 . 4 . Treads 2 | . . . . 2 . Leg 5 | 2 . 1 . 2 . Wheel . | . . . . . . Hover . | . . . . . . Flight . | . . . . . . Utility 3 | 1 2 . . . . Device . | . . . . . . Storage 3 | 1 2 . . . . Processor . | . . . . . . Hackware . | . . . . . . Protection . | . . . . . . Artifact . | . . . . . . Weapon 7 | 3 1 2 . 1 . Energy Gun 2 | 1 . 1 . . . Energy Cannon . | . . . . . . Ballistic Gun 3 | 2 . . . 1 . Ballistic Cannon . | . . . . . . Launcher 1 | . 1 . . . . Special Weapon . | . . . . . . Impact Weapon 1 | . . 1 . . . Slashing Weapon . | . . . . . . Piercing Weapon . | . . . . . . Special Melee Weapon . | . . . . . . Unidentified Prototypes . | . . . . . . Parts Lost 8 | . . 2 . 6 . Power 2 | . . 1 . 1 . Propulsion 4 | . . . . 4 . Utility . | . . . . . . Weapon 2 | . . 1 . 1 . Highest Loss Streak 6 | . . 2 . 6 . Average Slot Usage (%) 99 | . 99 99 100 99 . Engine 13 | . 14 13 14 14 . Treads 4 | . . . . 19 . Leg 23 | . 28 28 28 8 . Storage 27 | . 27 28 28 28 . Energy Gun 10 | . 13 9 14 4 . Ballistic Gun 8 | . 14 2 . 9 . Launcher 1 | . . 4 . . . Impact Weapon 7 | . . 11 14 14 . Naked Turns . | . . . . . . Heaviest Build 75 | 13 74 75 75 75 . Greatest Support 40 | 20 20 20 20 40 . Greatest Overweight (x) 3 | . 3 3 3 3 . Average Overweight (x) 2 | . 2 3 3 1 . Largest Inventory Capacity 20 | 6 20 20 20 20 . Average Capacity 19 | 5 19 20 20 20 . Most Carried 13 | 4 13 13 13 13 . Average Carried 10 | 2 9 11 13 9 . Final Capacity 20 | 6 20 20 20 20 20 Final Carried 13 | 4 12 13 13 9 9 Class Distribution -------------------- 96% | Hauler-Mutant 3% | Mutant Dominant Class ---------------- Hauler-Mutant | -10/Materials Hauler-Mutant | -10/Mines Hauler-Mutant | -10/Exiles Hauler-Mutant | -9/Mines Hauler-Mutant | -8/Materials Resources | -11 -10 -10 -10 -9 -8 ----------- Run | Scr Mat Min Exi Min Mat Matter Collected 595 | 213 188 126 . 68 . Remotely . | . . . . . . Salvage Created 563 | . 461 39 . 63 . Parts 31 | . 25 . . 6 . Haulers Intercepted 2 | . 2 . . . . Recyclers Shooed . | . . . . . . Parts Field Recycled . | . . . . . . Retrieved Matter . | . . . . . . Parts Self-Destructed . | . . . . . . Prevented . | . . . . . . Kills | -11 -10 -10 -10 -9 -8 ------- Run | Scr Mat Min Exi Min Mat Combat Hostiles Destroyed 20 | . 9 7 . 4 . Melee 2 | . . 1 . 1 . Guns 11 | . 8 . . 3 . AOE 7 | . 1 6 . . . Classes Destroyed 9 | . 8 1 . . . Worker 1 | . 1 . . . . Builder 2 | . 1 1 . . . Hauler 2 | . 2 . . . . Recycler 1 | . 1 . . . . Mechanic 1 | . 1 . . . . Watcher 1 | . 1 . . . . Swarmer 10 | . 6 . . 4 . Grunt 3 | . 3 . . . . Assembled 7 | . . 7 . . . Best Kill Streak 6 | . 3 6 . 4 . Combat Bots Only 6 | . 3 6 . 4 . Max Kills in Single Turn 2 | . 1 2 . 1 . Gunslinging . | . . . . . . Exploded 2 | . 1 2 . . . Melee 1 | . . 1 . 1 . Uniques/NPCs Destroyed . | . . . . . . Combat | -11 -10 -10 -10 -9 -8 -------- Run | Scr Mat Min Exi Min Mat Damage Taken 1214 | . 362 428 . 424 . Core 206 | . 67 90 . 49 . Absorbed by Shields . | . . . . . . Core Remaining (%) 58 | 100 . . . 17 . Volleys Fired 57 | . 42 4 . 11 . Largest 2 | . 2 1 . 1 . Hottest 65 | . 60 65 . 20 . Shots Fired 94 | . 79 4 . 11 . Gun 86 | . 74 1 . 11 . Cannon . | . . . . . . Launcher 8 | . 5 3 . . . Special . | . . . . . . Kinetic 48 | . 37 . . 11 . Thermal 1 | . . 1 . . . Explosive 8 | . 5 3 . . . Electromagnetic 37 | . 37 . . . . Robot Hit Streak 13 | . 13 7 . 2 . Robot Miss Streak 2 | . 2 2 . 2 . Penetration Max . | . . . . . . Secondary Targets . | . . . . . . Shots Hit Robots 65 | . 52 5 . 8 . Core Hits 43 | . 24 14 . 5 . Critical Hits . | . . . . . . Critical Kills . | . . . . . . Critical Parts Destroyed . | . . . . . . Melee Attacks 10 | . . 7 . 3 . Impact 10 | . . 7 . 3 . Slashing . | . . . . . . Piercing . | . . . . . . Sneak Attacks 1 | . . 1 . . . Combat Hostiles . | . . . . . . Follow-up Attacks . | . . . . . . Damage Inflicted 1665 | . 982 553 . 130 . Guns 729 | . 659 . . 70 . Cannons . | . . . . . . Explosions 667 | . 323 344 . . . Melee 269 | . . 209 . 60 . Ramming . | . . . . . . Kinetic 462 | . 392 . . 70 . Thermal 151 | . 151 . . . . Explosive 516 | . 172 344 . . . Electromagnetic 267 | . 267 . . . . Impact 269 | . . 209 . 60 . Slashing . | . . . . . . Piercing . | . . . . . . Highest Corruption . | . . . . . . Average Corruption . | . . . . . . Corruption Purged . | . . . . . . Overload Shots . | . . . . . . Overflow Damage 113 | . 48 64 . 1 . Projectiles . | . . . . . . Explosions 49 | . 48 1 . . . Melee 64 | . . 63 . 1 . Knockbacks 1 | . . 1 . . . Impact 1 | . . 1 . . . Kinetic . | . . . . . . Secondary . | . . . . . . Self-Inflicted Damage 134 | . 52 82 . . . Shots 4 | . 1 3 . . . Rammed . | . . . . . . Targets Rammed . | . . . . . . Kicked . | . . . . . . Crushed . | . . . . . . Highest Temperature 30 | . 30 24 . . . Average Temperature 20 | . 21 14 . . . Received Heat Transfer 48 | . 48 . . . . Siege Activations . | . . . . . . Robots Corrupted . | . . . . . . Combat Hostiles . | . . . . . . Parts Fried 5 | . 1 4 . . . Impact Corruptions 4 | . . 3 . 1 . Robots Melted . | . . . . . . Combat Hostiles . | . . . . . . Parts Melted . | . . . . . . Heat Transferred 200 | . 200 . . . . Parts Sabotaged . | . . . . . . Parts Stolen . | . . . . . . Parts Stripped . | . . . . . . Power Chain Reactions 2 | . 2 . . . . Missiles Intercepted . | . . . . . . Alert | -11 -10 -10 -10 -9 -8 ------- Run | Scr Mat Min Exi Min Mat Peak Influence 167 | . 167 23 . 60 . Initial 18 | . . 18 . . 5 Average 37 | . 71 6 . 26 . Maximum Alert Level . | . . . . . . Low Security (%) 100 | 100 100 100 . 100 . Level 1 . | . . . . . . Level 2 . | . . . . . . Level 3 . | . . . . . . Level 4 . | . . . . . . Level 5 . | . . . . . . High Security . | . . . . . . Max Security . | . . . . . . Squads Dispatched 1 | . . 1 . . . Investigation 1 | . . 1 . . . Extermination . | . . . . . . Reinforcement . | . . . . . . Assault . | . . . . . . Garrison . | . . . . . . Intercept . | . . . . . . Construction Impeded . | . . . . . . Haulers Reinforced . | . . . . . . Stealth | -11 -10 -10 -10 -9 -8 --------- Run | Scr Mat Min Exi Min Mat Distress Signals 1 | . 1 . . . . Communications Jammed . | . . . . . . Distress Signals . | . . . . . . Times Spotted 38 | . 21 12 . 5 . Peak Tracking Total 6 | . 4 6 . 4 . Tactical Retreats 3 | . 1 2 . . . Traps | -11 -10 -10 -10 -9 -8 ------- Run | Scr Mat Min Exi Min Mat Traps Triggered . | . . . . . . Indirectly . | . . . . . . Trap Hack Attempts . | . . . . . . Triggered . | . . . . . . Disarmed . | . . . . . . Reprogrammed . | . . . . . . Reused . | . . . . . . Traps Extracted . | . . . . . . Installed . | . . . . . . Triggered . | . . . . . . Machines | -11 -10 -10 -10 -9 -8 ---------- Run | Scr Mat Min Exi Min Mat Machines Disabled 2 | . 2 . . . . Max in Single Turn 1 | . 1 . . . . Machines Sabotaged . | . . . . . . Garrisons Compromised . | . . . . . . Overloaded Fab Kills . | . . . . . . Fab Network Shutdowns . | . . . . . . Hacking | -11 -10 -10 -10 -9 -8 --------- Run | Scr Mat Min Exi Min Mat Machines Accessed 4 | . 3 1 . . . Terminals 2 | . 2 . . . . Fabricators . | . . . . . . Repair Stations 1 | . 1 . . . . Recycling Units . | . . . . . . Scanalyzers . | . . . . . . Garrison Access . | . . . . . . Total Hacks 7 | . 6 1 . . . Successful 3 | . 2 1 . . . Failed 4 | . 4 . . . . Catastrophic . | . . . . . . Database Lockouts . | . . . . . . Manual . | . . . . . . Terminals 4 | . 4 . . . . Fabricators . | . . . . . . Repair Stations 2 | . 2 . . . . Recycling Units . | . . . . . . Scanalyzers . | . . . . . . Garrison Access . | . . . . . . Terminal Hacks 3 | . 2 1 . . . Open Door 1 | . . 1 . . . Locate Traps 2 | . 2 . . . . Fabricator Hacks . | . . . . . . Repair Station Hacks . | . . . . . . Recycling Unit Hacks . | . . . . . . Scanalyzer . | . . . . . . Garrison Access Hacks . | . . . . . . Unauthorized Hacks . | . . . . . . Terminals . | . . . . . . Fabricators . | . . . . . . Repair Stations . | . . . . . . Recycling Units . | . . . . . . Scanalyzers . | . . . . . . Garrison Access . | . . . . . . Data Cores Recovered . | . . . . . . Used . | . . . . . . Hacking Detections 2 | . 2 . . . . Full Trace Events . | . . . . . . Feedback Events . | . . . . . . Feedback Blocked . | . . . . . . Robot Schematics Acquired . | . . . . . . Robots Built . | . . . . . . Matter . | . . . . . . Time . | . . . . . . Total Robot Build Rating . | . . . . . . Part Schematics Acquired . | . . . . . . Parts Built . | . . . . . . Matter . | . . . . . . Time . | . . . . . . Total Part Build Rating . | . . . . . . Parts Repaired . | . . . . . . Time . | . . . . . . Parts Recycled . | . . . . . . Recycled Matter . | . . . . . . Retrieved Matter . | . . . . . . Retrieved Components . | . . . . . . Parts Scanalyzed . | . . . . . . Part Schematics Acquired . | . . . . . . Parts Damaged . | . . . . . . Bothacking | -11 -10 -10 -10 -9 -8 ------------ Run | Scr Mat Min Exi Min Mat Used RIF Installer . | . . . . . . Robots Hacked . | . . . . . . Non-combat . | . . . . . . Combat . | . . . . . . Robot Hacks Applied . | . . . . . . Relay Couplers Released . | . . . . . . Robots Rewired . | . . . . . . Allies Hacked . | . . . . . . Hacks Repelled . | . . . . . . Allies | -11 -10 -10 -10 -9 -8 -------- Run | Scr Mat Min Exi Min Mat Total Allies 2 | . . 2 . . . Largest Group 2 | . . 2 2 . . Highest-Rated Group 42 | . . 42 42 . . Highest-Rated Ally 31 | . . 31 31 . . Total Orders . | . . . . . . Ally Attacks . | . . . . . . Total Damage . | . . . . . . Kills . | . . . . . . Allies Corrupted . | . . . . . . Allies Melted . | . . . . . . Intel | -11 -10 -10 -10 -9 -8 ------- Run | Scr Mat Min Exi Min Mat Robot Analysis Total . | . . . . . . Derelict Logs Recovered . | . . . . . . Drone Launches . | . . . . . . Drone Recoveries . | . . . . . . Exploration | -11 -10 -10 -10 -9 -8 ------------- Run | Scr Mat Min Exi Min Mat Turns Passed 2529 | 66 966 820 148 529 . Spaces Moved 1089 | 53 356 353 70 257 . Core 20 | 20 . . . . . Treads 176 | . . . . 176 . Legs 893 | 33 356 353 70 81 . Wheels . | . . . . . . Hover . | . . . . . . Flight . | . . . . . . Fastest Speed 50 | 50 120 210 210 180 . Average Speed 197 | 93 204 210 210 189 . Slowest Speed 210 | 120 210 210 210 210 . Overloaded Moves . | . . . . . . Propulsion Burnouts . | . . . . . . Robots Hopped . | . . . . . . Cave-ins Triggered . | . . . . . . Exploration Rate (%) 31 | 4 40 76 10 57 1 Regions Visited 5 Branch Regions 3 Pre-discovered Areas . | . . . . . . Known Exits Taken . | . . . . . . Unknown Exits Taken 5 | 1 1 1 1 1 . Scrap Searched 1 | . . . . 1 . Spaces Dug 4 | . . 4 . . . Terrain Destroyed 52 | . 39 13 . . . Melee . | . . . . . . Projectile . | . . . . . . AOE 52 | . 39 13 . . . Terrain Rammed . | . . . . . . Walls Destroyed . | . . . . . . Machines Disabled . | . . . . . . Actions | -11 -10 -10 -10 -9 -8 --------- Run | Scr Mat Min Exi Min Mat Total 1366 | 70 518 421 72 285 . Wait 160 | . 103 47 3 7 . Move 1084 | 52 355 352 69 256 . Hop . | . . . . . . Pick Up 27 | 10 11 4 . 2 . Fast Attach . | . . . . . . Attach 19 | 7 3 3 . 6 . Detach 4 | 1 2 1 . . . Swap 2 | . . 2 . . . Drop 3 | . 2 1 . . . Fire 57 | . 42 4 . 11 . Melee 10 | . . 7 . 3 . Ram . | . . . . . . Kick . | . . . . . . Crush . | . . . . . . Escape Stasis . | . . . . . . Rewire . | . . . . . . Trap . | . . . . . . Miscellaneous . | . . . . . . Route ------- -11/Scrapyard -10/Materials (discovered 2 exits: *Min x2) -10/Mines -10/Exiles -9/Mines -8/Materials History --------- Turn | Location | Event 11 | -11/Scrapyard | Discovered new exit (range 15) 67 | -11/Scrapyard | Entered Materials 392 | -10/Materials | Build established: Hauler-Mutant 813 | -10/Materials | Discovered new exit (range 10) 949 | -10/Materials | Discovered new exit (range 12) 1033 | -10/Materials | Entered Mines 1110 | -10/Mines | A weapon hastily lodged in a ceiling crevice suddenly fell to the ground 1242 | -10/Mines | Assembled infested the area 1305 | -10/Mines | Core integrity fell below 50% 1648 | -10/Mines | Met a Derelict shopkeep closing up shop 1833 | -10/Mines | Deemed a non-threat by the Exiles lab entrance 1833 | -10/Mines | Discovered new exit (range 5) 1853 | -10/Mines | Entered Exiles 1853 | -10/Exiles | Accompanied by 2 allies 1883 | -10/Exiles | Led the pair of lost Derelicts to a safe place 1885 | -10/Exiles | Discovered new exit (range 14) 1955 | -10/Exiles | Met 8R-AWN 2001 | -10/Exiles | Entered Mines 2198 | -9/Mines | Core integrity fell below 20% 2218 | -9/Mines | Lost 6 parts (1p4n1w) 2401 | -9/Mines | Joined a pair of Derelicts in attacking an 0b10 outpost 2513 | -9/Mines | Discovered new exit (range 10) 2530 | -9/Mines | Entered Materials 2530 | -8/Materials | Evolved 4 slots: Propulsion x2, Utility x2 2530 | -8/Materials | Self-destructed Last Messages --------------- 02213_ S-10 Pest misfires. 02214_ S-10 Pest destroyed. 02217_ K-01 Serf collects debris. 02401_ A derelict emerges from the shadows: "We've had our eye on this brand new outpost for a little while, just waiting for an opportunity to strike. Need some help?" 02405_ Y-45 Defender destroyed. 02407_ Acquired 35 matter. 02418_ Acquired Beam Rifle. 02433_ Acquired Imp. Ion Engine. 02436_ R-06 Scavenger collects Lgt. Treads. 02440_ R-06 Scavenger collects Heat Sink. 02445_ K-01 Serf collects debris. 02474_ Searching scrap... 02474_ Found Welding Torch. 02474_ Found 18 Matter. 02513_ EXIT=FOUND PARAMETERS=PROPULSION_2,UTILITY_2 LOCATION=UNKNOWN GOAL=ESCAPE Map ----- +----------------------------------------------------+ | | | | | | | | | ???????????????????????????????????? | | ???????????????????????????????????? | | ???????????????????????????????????? | | ???????????????????????????????????? | | ???????????????????????????????????? | | ???????????????????????????????????? | | ???????????????????????????????????? | | ???????????????????????????????????? | | ???????????????????????????????????? | | ???????????????????????????????????? | | ???????????????????????????????????? | | ???????????????????????????????????? | | ???????????????????????????????????? | | ???????????????????????????????????? | | ???????????????????????????????????? | | ???????????????????????????????????? | | ???????????????????????????????????? | | ???????????????????????????????????? | | ???????????????????????????????????? | | ???????????????????????#####???????? | | ???????????????????????# #???????? | | ???????????????????????# @ #???????? | | ???????????????????????# #???????? | | ???????????????????????# +???????? | | ???????????????????????# #???????? | | ???????????????????????# #???????? | | ???????????????????????# #???????? | | ???????????????????????# #???????? | | ???????????????????????# #???????? | | ???????????????????????# #???????? | | ???????????????????????+ #???????? | | ???????????????????????# #???????? | | ???????????????????????# #???????? | | ???????????????????????# #???????? | | ???????????????????????? ! ????????? | | ???????????????????????? ????????? | | ???????????????????????? ????????? | | ???????????????????????????????????? | | ???????????????????????????????????? | | ???????????????????????????????????? | | ???????????????????????????????????? | | ???????????????????????????????????? | | ???????????????????????????????????? | | ???????????????????????????????????? | | ???????????????????????????????????? | | ???????????????????????????????????? | +----------------------------------------------------+ Best States ------------- Heat Dissipation 25 Energy Generation 14 Energy Capacity 250 Matter Stores 300 Matter Capacity 300 Sight Range 16 Terrain Scan Density 10 Evasion (%) 50 Recoil Reduction 2 Item Schematics ----------------- None Robot Schematics ------------------ None Fabricated ------------ Nothing Alien Tech Used ----------------- None Achievements -------------- I Survived The Infestation Let's See Who's Tougher Challenges ------------ None Game ------ Seed TransmissionMagneticNetwork Manual? 0 Play Time 00:28:21 Cumulative 13.4 hours Start 2021.11.26 @ 12:56:19 End 2021.11.26 @ 13:24:27 Sessions 1 Manual Loads 0 Difficulty Rogue Special Mode None Game No. 17 Rogue 17 Adventurer 0 Explorer 0 Win Type - Total 0 Types 0/0/0/0/0/0/0/0/0 Lore% 7 Gallery% 10 Achievement% 11 Wizard Run 0 Options --------- ASCII 0 Keyboard 1 Movement Vi Keybinds 0 Fullscreen 1 Font 18/SmallcapsGlow Map View 76x50 Tactical HUD 1 Map Filters NONE Filters NONE Steam 1 RUN: a59e04d9-fed5-445f-95ff-863ba9e5c3ff